fUST/lending_fUST_20250720
["ID","MTS","AMOUNT","RATE_DAILY","PERIOD"]
[373397793,1752985839885,-460.0,0.00017977,2]
[373397794,1752985839895,-460.0,0.00017977,2]
[373397795,1752985839904,-460.0,0.00017977,2]
[373397796,1752985839914,-460.0,0.00017977,2]
[373397797,1752985839926,-460.0,0.00017977,2]
[373397798,1752985839935,-460.0,0.00017977,2]
[373397799,1752985839945,-460.0,0.00017977,2]
[373397800,1752985839954,-616.12,0.00017978,2]
[373397801,1752985839964,-927.07902042,0.00017978,2]
[373397802,1752985839974,-154.59619688,0.00018,2]
[373397803,1752985839983,-19407.92206008,0.00018,2]
[373397804,1752985839992,-12706.42004016,0.00018,2]
[373397805,1752985840002,-460.0,0.00018077,2]
[373397806,1752985840011,-460.0,0.00018077,2]
[373397807,1752985840020,-460.0,0.00018077,2]
[373397808,1752985840029,-460.0,0.00018077,2]
[373397809,1752985840038,-201.69640904,0.00018144,2]
[373397810,1752985840047,-348.16794707,0.00018144,2]
[373397811,1752985840057,-1000.0,0.00018144,2]
[373397812,1752985840067,-463.93652107,0.00018144,2]
[373397813,1752985840076,-460.0,0.00018144,2]
[373397814,1752985840085,-460.0,0.00018144,2]
[373397815,1752985840094,-461.63026959,0.00018145,2]
[373397816,1752985840104,-557.56822474,0.00018145,2]
[373397817,1752985840113,-462.26943899,0.00018145,2]
[373397818,1752985840122,-460.0,0.00018145,2]
[373397820,1752985840131,-465.31213804,0.00018145,2]
[373397821,1752985840141,-460.0,0.00018145,2]
[373397822,1752985840150,-462.26756632,0.00018145,2]
[373397823,1752985840159,-464.05237479,0.00018145,2]
[373397824,1752985840168,-460.0,0.00018145,2]
[373397825,1752985840177,-460.0,0.00018145,2]
[373397826,1752985840187,-680.08,0.00018145,2]
[373397827,1752985840196,-460.0,0.00018145,2]
[373397828,1752985840206,-460.0,0.00018145,2]
[373397829,1752985840216,-460.0,0.00018145,2]
[373397830,1752985840226,-568.81,0.00018145,2]
[373397831,1752985840235,-460.0,0.00018145,2]
[373397832,1752985840245,-1723.62,0.00018145,2]
[373397833,1752985840255,-460.0,0.00018145,2]
[373397834,1752985840264,-460.0,0.00018145,2]
[373397835,1752985840274,-460.0,0.00018145,2]
[373397836,1752985840283,-460.0,0.00018145,2]
[373397838,1752985840294,-550.52,0.00018145,2]
[373397839,1752985840303,-460.0,0.00018145,2]
[373397840,1752985840313,-460.0,0.00018145,2]
[373397841,1752985840323,-496.57,0.00018145,2]
[373397842,1752985840333,-440.97,0.00018146,2]
[373397843,1752985840342,-460.0,0.00018146,2]
[373397844,1752985840352,-460.0,0.00018146,2]
[373397845,1752985840361,-465.27911828,0.00018146,2]
[373397846,1752985840371,-458.6270745,0.00018146,2]
[373397847,1752985840380,-462.30044154,0.00018146,2]
[373397848,1752985840390,-460.0,0.00018146,2]
[373397849,1752985840400,-460.0,0.00018146,2]
[373397850,1752985840410,-460.0,0.00018146,2]
[373397851,1752985840419,-460.0,0.00018146,2]
[373397852,1752985840428,-460.0,0.00018146,2]
[373397853,1752985840438,-460.0,0.00018146,2]
[373397854,1752985840447,-506.64214284,0.00018146,2]
[373397855,1752985840457,-460.0,0.00018146,2]
[373397856,1752985840466,-460.0,0.00018146,2]
[373397857,1752985840476,-460.0,0.00018146,2]
[373397858,1752985840485,-460.0,0.00018146,2]
[373397859,1752985840494,-460.0,0.00018146,2]
[373397860,1752985840503,-460.0,0.00018146,2]
[373397861,1752985840512,-466.00301324,0.00018146,2]
[373397862,1752985840521,-460.0,0.00018146,2]
[373397863,1752985840530,-460.0,0.00018146,2]
[373397864,1752985840539,-460.0,0.00018146,2]
[373397865,1752985840549,-460.0,0.00018146,2]
[373397866,1752985840558,-460.0,0.00018146,2]
[373397867,1752985840568,-460.0,0.00018146,2]
[373397868,1752985840577,-460.0,0.00018146,2]
[373397869,1752985840587,-460.0,0.00018146,2]
[373397870,1752985840596,-461.77988863,0.00018146,2]
[373397871,1752985840605,-460.0,0.00018146,2]
[373397872,1752985840614,-460.0,0.00018146,2]
[373397873,1752985840624,-460.0,0.00018146,2]
[373397874,1752985840633,-460.0,0.00018146,2]
[373397875,1752985840643,-460.0,0.00018146,2]
[373397876,1752985840652,-460.0,0.00018146,2]
[373397877,1752985840662,-460.0,0.00018146,2]
[373397879,1752985840671,-460.0,0.00018146,2]
[373397880,1752985840681,-460.0,0.00018146,2]
[373397881,1752985840690,-460.0,0.00018146,2]
[373397882,1752985840699,-460.0,0.00018146,2]
[373397883,1752985840709,-460.0,0.00018146,2]
[373397884,1752985840718,-460.0,0.00018146,2]
[373397885,1752985840728,-460.0,0.00018146,2]
[373397886,1752985840738,-460.0,0.00018146,2]
[373397887,1752985840747,-354.41743296,0.00018146,2]
[373397888,1752985840756,-460.0,0.00018146,2]
[373397889,1752985840765,-460.0,0.00018146,2]
[373397890,1752985840774,-460.0,0.00018146,2]
[373397891,1752985840784,-460.0,0.00018146,2]
[373397892,1752985840795,-460.0,0.00018146,2]
[373397893,1752985840805,-460.0,0.00018147,2]
[373397894,1752985840815,-461.86640655,0.00018147,2]
[373397895,1752985840825,-460.0,0.00018147,2]
[373397896,1752985840834,-460.0,0.00018147,2]
[373397897,1752985840843,-460.0,0.00018147,2]
[373397898,1752985840853,-460.0,0.00018147,2]
[373397899,1752985840863,-460.0,0.00018148,2]
[373397900,1752985840872,-460.0,0.00018148,2]
[373397901,1752985840882,-460.0,0.00018148,2]
[373397902,1752985840891,-460.0,0.00018148,2]
[373397903,1752985840901,-460.0,0.00018148,2]
[373397904,1752985840911,-460.0,0.00018148,2]
[373397905,1752985840921,-462.69834167,0.00018148,2]
[373397906,1752985840934,-460.0,0.00018148,2]
[373397907,1752985840943,-460.0,0.00018148,2]
[373397908,1752985840952,-463.32917827,0.00018148,2]
[373397909,1752985840961,-460.0,0.00018148,2]
[373397910,1752985840973,-460.0,0.00018148,2]
[373397911,1752985840982,-460.0,0.00018148,2]
[373397912,1752985840991,-460.0,0.00018148,2]
[373397913,1752985841002,-292.80812658,0.00018148,2]
[373397914,1752985841011,-460.0,0.00018148,2]
[373397915,1752985841020,-460.0,0.00018148,2]
[373397916,1752985841029,-854.3,0.00018148,2]
[373397917,1752985841038,-460.0,0.00018148,2]
[373397918,1752985841048,-460.0,0.00018148,2]
[373397919,1752985841057,-460.0,0.00018247,2]
[373397920,1752985841067,-460.0,0.00018247,2]
[373397921,1752985841076,-460.0,0.00018247,2]
[373397922,1752985841085,-460.0,0.00018248,2]
[373397923,1752985841094,-460.0,0.00018248,2]
[373397924,1752985841104,-560.00215508,0.00018248,2]
[373397925,1752985841113,-460.0,0.00018248,2]
[373397926,1752985841123,-460.0,0.00018248,2]
[373397927,1752985841132,-460.0,0.00018248,2]
[373397928,1752985841141,-460.0,0.00018248,2]
[373397929,1752985841151,-460.0,0.00018248,2]
[373397930,1752985841184,-460.0,0.00018248,2]
[373397931,1752985841194,-460.0,0.00018248,2]
[373397932,1752985841204,-460.0,0.00018248,2]
[373397933,1752985841214,-460.0,0.00018248,2]
[373397934,1752985841223,-460.0,0.00018248,2]
[373397935,1752985841233,-460.0,0.00018248,2]
[373397936,1752985841242,-460.0,0.00018248,2]
[373397937,1752985841252,-460.0,0.00018248,2]
[373397938,1752985841262,-460.0,0.00018248,2]
[373397939,1752985841271,-819.88,0.0001825,2]
[373397940,1752985841281,-460.0,0.0001825,2]
[373397941,1752985841291,-460.0,0.00018251,2]
[373397942,1752985841300,-616.12,0.00018252,2]
[373397943,1752985841309,-460.0,0.00018351,2]
[373397944,1752985841319,-464.81193699,0.00018351,2]
[373397945,1752985841328,-460.0,0.00018351,2]
[373397946,1752985841338,-461.34760841,0.00018351,2]
[373397947,1752985841347,-460.0,0.00018351,2]
[373397948,1752985841357,-460.0,0.00018351,2]
[373397949,1752985841366,-460.0,0.00018351,2]
[373397950,1752985841375,-244.89343282,0.00018351,2]
[373397951,1752985841384,-460.0,0.00018351,2]
[373397952,1752985841393,-461.27328234,0.00018351,2]
[373397953,1752985841401,-460.0,0.00018351,2]
[373397954,1752985841411,-460.0,0.00018351,2]
[373397955,1752985841419,-460.0,0.00018351,2]
[373397956,1752985841429,-467.91759822,0.00018351,2]
[373397957,1752985841438,-460.0,0.00018351,2]
[373397958,1752985841446,-460.0,0.00018351,2]
[373397959,1752985841455,-460.0,0.00018351,2]
[373397960,1752985841465,-460.0,0.00018351,2]
[373397961,1752985841473,-460.0,0.00018351,2]
[373397962,1752985841482,-313.53300192,0.00018351,2]
[373397963,1752985841491,-460.0,0.00018351,2]
[373397964,1752985841500,-460.0,0.00018351,2]
[373397965,1752985841509,-500.0,0.00018351,2]
[373397966,1752985841518,-460.0,0.00018351,2]
[373397967,1752985841527,-460.0,0.00018351,2]
[373397968,1752985841536,-358.76175498,0.00018374,2]
[373397969,1752985841546,-460.0,0.00018418,2]
[373397970,1752985841555,-460.0,0.00018419,2]
[373397971,1752985841565,-463.84024398,0.00018419,2]
[373397972,1752985841574,-545.32681895,0.00018419,2]
[373397973,1752985841583,-680.08,0.00018419,2]
[373397974,1752985841593,-172.49199997,0.00018419,2]
[373397975,1752985841603,-460.0,0.00018419,2]
[373397976,1752985841613,-568.81,0.00018419,2]
[373397977,1752985841622,-1723.62,0.00018419,2]
[373397978,1752985841631,-394.01515072,0.00018419,2]
[373397979,1752985841641,-460.0,0.00018419,2]
[373397980,1752985841650,-460.0,0.00018419,2]
[373397981,1752985841659,-496.57,0.00018419,2]
[373397982,1752985841669,-460.0,0.0001842,2]
[373397983,1752985841679,-460.0,0.0001842,2]
[373397984,1752985841688,-460.0,0.0001842,2]
[373397985,1752985841698,-460.0,0.0001842,2]
[373397986,1752985841707,-460.0,0.0001842,2]
[373397987,1752985841717,-460.0,0.0001842,2]
[373397988,1752985841727,-460.0,0.0001842,2]
[373397989,1752985841736,-404.82698452,0.0001842,2]
[373397990,1752985841746,-460.0,0.0001842,2]
[373397991,1752985841755,-460.0,0.0001842,2]
[373397992,1752985841765,-206.14,0.0001842,2]
[373397993,1752985841775,-460.0,0.0001842,2]
[373397994,1752985841785,-460.0,0.00018422,2]
[373397995,1752985841796,-460.0,0.00018422,2]
[373397996,1752985841806,-460.0,0.00018422,2]
[373397997,1752985841815,-460.0,0.00018422,2]
[373397998,1752985841824,-854.3,0.00018422,2]
[373397999,1752985841834,-502.25707875,0.00018521,2]
[373398000,1752985841843,-460.0,0.00018521,2]
[373398001,1752985841853,-460.0,0.00018522,2]
[373398002,1752985841863,-460.0,0.00018522,2]
[373398003,1752985841872,-152.97,0.00018522,2]
[373398004,1752985841881,-500.0,0.00018524,2]
[373398005,1752985841891,-819.88,0.00018524,2]
[373398006,1752985841900,-460.0,0.00018524,2]
[373398007,1752985841909,-460.0,0.00018525,2]
[373398008,1752985841919,-616.12,0.00018526,2]
[373398009,1752985841932,-367.15050101,0.00018625,2]
[373398010,1752985841942,-460.0,0.00018625,2]
[373398011,1752985841951,-460.0,0.00018625,2]
[373398012,1752985841960,-460.0,0.00018625,2]
[373398013,1752985841969,-460.0,0.00018625,2]
[373398014,1752985841979,-460.0,0.00018625,2]
[373398015,1752985841988,-460.0,0.00018625,2]
[373398016,1752985841997,-460.0,0.00018625,2]
[373398017,1752985842006,-460.0,0.00018692,2]
[373398018,1752985842017,-680.08,0.00018693,2]
[373398019,1752985842026,-460.0,0.00018693,2]
[373398020,1752985842035,-568.81,0.00018693,2]
[373398021,1752985842044,-1723.62,0.00018693,2]
[373398022,1752985842053,-460.0,0.00018693,2]
[373398023,1752985842063,-496.57,0.00018693,2]
[373398024,1752985842072,-460.0,0.00018694,2]
[373398025,1752985842081,-460.0,0.00018694,2]
[373398026,1752985842091,-460.0,0.00018696,2]
[373398027,1752985842100,-854.3,0.00018696,2]
[373398028,1752985842110,-460.0,0.00018795,2]
[373398029,1752985842119,-819.88,0.00018798,2]
[373398030,1752985842128,-460.0,0.00018798,2]
[373398031,1752985842137,-460.0,0.00018799,2]
[373398032,1752985842147,-616.12,0.000188,2]
[373398033,1752985842156,-457.72357652,0.00018849,2]
[373398034,1752985842165,-460.0,0.00018899,2]
[373398035,1752985842175,-460.0,0.00018899,2]
[373398036,1752985842184,-460.0,0.00018899,2]
[373398037,1752985842194,-460.0,0.00018899,2]
[373398038,1752985842204,-659.21999658,0.000189,2]
[373398039,1752985842213,-3074.42669151,0.000189,2]
[373398040,1752985842225,-460.0,0.00018966,2]
[373398041,1752985842234,-680.08,0.00018967,2]
[373398042,1752985842244,-460.0,0.00018967,2]
[373398043,1752985842253,-568.81,0.00018967,2]
[373398044,1752985842262,-1723.62,0.00018967,2]
[373398045,1752985842272,-460.0,0.00018967,2]
[373398046,1752985842281,-496.57,0.00018967,2]
[373398047,1752985842291,-460.0,0.00018968,2]
[373398048,1752985842301,-460.0,0.00018968,2]
[373398049,1752985842310,-460.0,0.0001897,2]
[373398050,1752985842319,-854.3,0.0001897,2]
[373398051,1752985842328,-915.39747396,0.00019,2]
[373398052,1752985842338,-460.0,0.00019069,2]
[373398053,1752985842347,-819.88,0.00019072,2]
[373398054,1752985842357,-460.0,0.00019072,2]
[373398055,1752985842367,-460.0,0.00019073,2]
[373398056,1752985842376,-616.12,0.00019074,2]
[373398057,1752985842385,-420.0,0.00019122,2]
[373398058,1752985842394,-3074.42669131,0.00019141,2]
[373398059,1752985842404,-460.0,0.00019173,2]
[373398060,1752985842413,-460.0,0.00019173,2]
[373398061,1752985842422,-460.0,0.00019173,2]
[373398062,1752985842432,-460.0,0.00019173,2]
[373398063,1752985842441,-185.282593,0.00019178,2]
[373398064,1752985842451,-1033.0,0.00019217,2]
[373398065,1752985842461,-460.0,0.0001924,2]
[373398066,1752985842471,-680.08,0.00019241,2]
[373398067,1752985842480,-460.0,0.00019241,2]
[373398068,1752985842490,-568.81,0.00019241,2]
[373398069,1752985842499,-1723.62,0.00019241,2]
[373398070,1752985842509,-460.0,0.00019241,2]
[373398071,1752985842519,-496.57,0.00019241,2]
[373398072,1752985842529,-460.0,0.00019242,2]
[373398073,1752985842539,-460.0,0.00019242,2]
[373398074,1752985842549,-460.0,0.00019244,2]
[373398075,1752985842558,-854.3,0.00019244,2]
[373398076,1752985842568,-460.0,0.00019343,2]
[373398077,1752985842577,-819.88,0.00019346,2]
[373398078,1752985842587,-460.0,0.00019346,2]
[373398079,1752985842597,-460.0,0.00019347,2]
[373398080,1752985842607,-616.12,0.00019348,2]
[373398081,1752985842616,-3074.42669131,0.00019383,2]
[373398082,1752985842626,-460.0,0.00019447,2]
[373398083,1752985842636,-460.0,0.00019447,2]
[373398084,1752985842645,-460.0,0.00019447,2]
[373398085,1752985842655,-460.0,0.00019514,2]
[373398086,1752985842665,-680.08,0.00019515,2]
[373398087,1752985842675,-460.0,0.00019515,2]
[373398088,1752985842684,-568.81,0.00019515,2]
[373398089,1752985842695,-1723.62,0.00019515,2]
[373398090,1752985842704,-460.0,0.00019515,2]
[373398091,1752985842714,-496.57,0.00019515,2]
[373398092,1752985842724,-460.0,0.00019516,2]
[373398093,1752985842734,-460.0,0.00019516,2]
[373398094,1752985842744,-460.0,0.00019518,2]
[373398095,1752985842753,-854.3,0.00019518,2]
[373398096,1752985842763,-819.88,0.0001962,2]
[373398097,1752985842773,-460.0,0.0001962,2]
[373398098,1752985842782,-460.0,0.00019621,2]
[373398099,1752985842793,-616.12,0.00019622,2]
[373398100,1752985842803,-3074.42669131,0.00019624,2]
[373398101,1752985842813,-460.0,0.00019721,2]
[373398102,1752985842823,-460.0,0.00019721,2]
[373398103,1752985842832,-460.0,0.00019721,2]
[373398104,1752985842841,-160.0,0.0001975,2]
[373398105,1752985842851,-230.98123516,0.0001975,2]
[373398106,1752985842860,-215.71456056,0.0001975,2]
[373398107,1752985842869,-839.59621281,0.0001975,2]
[373398108,1752985842878,-160.0,0.0001975,2]
[373398109,1752985842887,-525.91036056,0.0001975,2]
[373398110,1752985842896,-160.0,0.0001975,2]
[373398111,1752985842906,-214.5637056,0.0001975,2]
[373398112,1752985842915,-160.0,0.0001975,2]
[373398113,1752985842926,-160.0,0.0001975,2]
[373398114,1752985842936,-160.0,0.0001975,2]
[373398115,1752985842946,-460.0,0.00019788,2]
[373398116,1752985842955,-680.08,0.00019789,2]
[373398118,1752985842966,-460.0,0.00019789,2]
[373398119,1752985842975,-568.81,0.00019789,2]
[373398120,1752985842984,-1723.62,0.00019789,2]
[373398121,1752985842993,-460.0,0.00019789,2]
[373398122,1752985843004,-496.57,0.00019789,2]
[373398123,1752985843013,-157.87,0.0001979,2]
[373398124,1752985843022,-460.0,0.0001979,2]
[373398125,1752985843031,-460.0,0.00019792,2]
[373398126,1752985843040,-854.3,0.00019792,2]
[373398127,1752985843052,-3074.42669131,0.00019866,2]
[373398129,1752985843061,-819.88,0.00019894,2]
[373398130,1752985843071,-460.0,0.00019894,2]
[373398131,1752985843080,-460.0,0.00019895,2]
[373398132,1752985843090,-616.12,0.00019896,2]
[373398133,1752985843099,-457.72357652,0.00019926,2]
[373398134,1752985843108,-363969.24589371,0.0001998,2]
[373398135,1752985843118,-136116.37957163,0.00019988,2]
[373398136,1752985843127,-460.0,0.00019995,2]
[373398138,1752985843136,-460.0,0.00019995,2]
[373398139,1752985843145,-460.0,0.00019995,2]
[373398140,1752985843154,-14346.20478963,0.0002,2]
[373398141,1752985843163,-3194.4852885,0.0002,2]
[373398142,1752985843172,-362.71658097,0.0002,2]
[373398143,1752985843181,-71517.75574495,0.0002,2]
[373398144,1752985843191,-5930.35433822,0.0002,2]
[373398145,1752985843200,-71991.9922906,0.0002,2]
[373398146,1752985843209,-460.0,0.00020062,2]
[373398147,1752985843219,-680.08,0.00020063,2]
[373398148,1752985843228,-460.0,0.00020063,2]
[373398150,1752985843237,-568.81,0.00020063,2]
[373398151,1752985843246,-1723.62,0.00020063,2]
[373398152,1752985843255,-460.0,0.00020063,2]
[373398153,1752985843265,-496.57,0.00020063,2]
[373398154,1752985843274,-374.6519003,0.00020064,2]
[373398155,1752985843284,-460.0,0.00020066,2]
[373398156,1752985843294,-854.3,0.00020066,2]
[373398157,1752985843303,-3074.42669131,0.00020107,2]
[373398158,1752985843313,-819.88,0.00020168,2]
[373398159,1752985843323,-460.0,0.00020168,2]
[373398160,1752985843333,-460.0,0.00020169,2]
[373398161,1752985843343,-616.12,0.0002017,2]
[373398162,1752985843351,-167.33566,0.00020187,2]
[373398163,1752985843361,-460.0,0.00020269,2]
[373398164,1752985843370,-460.0,0.00020269,2]
[373398165,1752985843379,-460.0,0.00020269,2]
[373398166,1752985843389,-460.0,0.00020336,2]
[373398168,1752985843399,-680.08,0.00020337,2]
[373398170,1752985843408,-460.0,0.00020337,2]
[373398171,1752985843418,-568.81,0.00020337,2]
[373398172,1752985843427,-1723.62,0.00020337,2]
[373398173,1752985843437,-460.0,0.00020337,2]
[373398174,1752985843447,-496.57,0.00020337,2]
[373398176,1752985843456,-460.0,0.0002034,2]
[373398177,1752985843465,-854.3,0.0002034,2]
[373398178,1752985843475,-3074.42669131,0.00020348,3]
[373398179,1752985843485,-819.88,0.00020442,2]
[373398180,1752985843494,-460.0,0.00020442,2]
[373398181,1752985843504,-460.0,0.00020443,2]
[373398183,1752985843513,-616.12,0.00020444,2]
[373398185,1752985843523,-460.0,0.00020543,2]
[373398187,1752985843532,-460.0,0.00020543,2]
[373398189,1752985843542,-460.0,0.00020543,2]
[373398191,1752985843551,-3074.42669131,0.0002059,3]
[373398193,1752985843561,-460.0,0.0002061,2]
[373398195,1752985843571,-680.08,0.00020611,2]
[373398197,1752985843580,-522.78894036,0.00020611,2]
[373398199,1752985843590,-568.81,0.00020611,2]
[373398201,1752985843599,-1723.62,0.00020611,2]
[373398203,1752985843608,-460.0,0.00020611,2]
[373398206,1752985843618,-460.0,0.00020614,2]
[373398208,1752985843628,-854.3,0.00020614,2]
[373398210,1752985843638,-1822.08350985,0.00020637,2]
[373398212,1752985843647,-819.88,0.00020716,2]
[373398214,1752985843656,-460.0,0.00020716,2]
[373398216,1752985843666,-460.0,0.00020717,2]
[373398218,1752985843675,-616.12,0.00020718,2]
[373398220,1752985843685,-460.0,0.00020817,2]
[373398222,1752985843694,-460.0,0.00020817,2]
[373398224,1752985843704,-460.0,0.00020817,2]
[373398226,1752985843714,-3074.42669131,0.00020831,4]
[373398228,1752985843723,-839.776,0.00020836,2]
[373398230,1752985843733,-587.0,0.00020875,2]
[373398232,1752985843743,-460.0,0.00020884,2]
[373398234,1752985843752,-680.08,0.00020885,2]
[373398236,1752985843762,-568.81,0.00020885,2]
[373398238,1752985843771,-1723.62,0.00020885,2]
[373398240,1752985843781,-547.34837965,0.00020885,2]
[373398242,1752985843791,-460.0,0.00020888,2]
[373398244,1752985843801,-854.3,0.00020888,2]
[373398246,1752985843811,-819.88,0.0002099,2]
[373398248,1752985843821,-460.0,0.0002099,2]
[373398250,1752985843831,-460.0,0.00020991,2]
[373398252,1752985843841,-616.12,0.00020992,2]
[373398254,1752985843851,-43045.50205228,0.00021,4]
[373398256,1752985843860,-457.72357652,0.00021004,2]
[373398258,1752985843870,-3074.42669131,0.00021072,4]
[373398260,1752985843880,-460.0,0.00021091,2]
[373398262,1752985843889,-460.0,0.00021091,2]
[373398265,1752985843900,-460.0,0.00021091,2]
[373398267,1752985843910,-460.0,0.00021158,2]
[373398278,1752985843920,-680.08,0.00021159,2]
[373398281,1752985844026,-568.81,0.00021159,2]
[373398283,1752985844035,-1723.62,0.00021159,2]
[373398285,1752985844044,-460.0,0.00021162,2]
[373398287,1752985844054,-854.3,0.00021162,2]
[373398289,1752985844063,-819.88,0.00021264,2]
[373398291,1752985844073,-460.0,0.00021264,2]
[373398293,1752985844082,-460.0,0.00021265,2]
[373398295,1752985844092,-616.12,0.00021266,2]
[373398297,1752985844101,-3074.42669131,0.00021314,5]
[373398299,1752985844110,-460.0,0.00021365,2]
[373398301,1752985844119,-460.0,0.00021365,2]
[373398303,1752985844128,-460.0,0.00021365,2]
[373398305,1752985844138,-460.0,0.00021432,2]
[373398307,1752985844147,-680.08,0.00021433,2]
[373398309,1752985844157,-568.81,0.00021433,2]
[373398311,1752985844166,-1723.62,0.00021433,2]
[373398313,1752985844175,-460.0,0.00021436,2]
[373398315,1752985844184,-854.3,0.00021436,2]
[373398317,1752985844194,-3615.46,0.00021482,4]
[373398319,1752985844203,-819.88,0.00021538,2]
[373398321,1752985844213,-460.0,0.00021538,2]
[373398323,1752985844222,-460.0,0.00021539,2]
[373398325,1752985844231,-616.12,0.0002154,2]
[373398327,1752985844240,-3074.42669131,0.00021555,5]
[373398329,1752985844249,-207.4,0.00021567,2]
[373398331,1752985844258,-151.0,0.00021567,2]
[373398333,1752985844268,-151.0,0.00021567,2]
[373398335,1752985844277,-151.0,0.00021567,2]
[373398337,1752985844286,-151.0,0.00021567,2]
[373398339,1752985844296,-151.0,0.00021567,2]
[373398341,1752985844305,-151.0,0.00021567,2]
[373398343,1752985844314,-151.0,0.00021567,2]
[373398345,1752985844324,-151.0,0.00021567,2]
[373398347,1752985844333,-151.0,0.00021567,2]
[373398349,1752985844343,-151.0,0.00021567,2]
[373398351,1752985844352,-151.0,0.00021567,2]
[373398353,1752985844361,-151.0,0.00021567,2]
[373398355,1752985844370,-151.0,0.00021567,2]
[373398357,1752985844379,-151.0,0.00021567,2]
[373398359,1752985844388,-151.0,0.00021567,2]
[373398361,1752985844397,-151.0,0.00021567,2]
[373398363,1752985844407,-151.0,0.00021567,2]
[373398365,1752985844416,-151.0,0.00021567,2]
[373398367,1752985844425,-151.0,0.00021567,2]
[373398369,1752985844434,-151.0,0.00021567,2]
[373398371,1752985844443,-25000.0,0.00021567,2]
[373398373,1752985844453,-460.0,0.00021639,2]
[373398375,1752985844462,-460.0,0.00021639,2]
[373398377,1752985844472,-460.0,0.00021639,2]
[373398379,1752985844481,-460.0,0.00021706,2]
[373398381,1752985844491,-680.08,0.00021707,2]
[373398383,1752985844500,-568.81,0.00021707,2]
[373398385,1752985844510,-1723.62,0.00021707,2]
[373398387,1752985844519,-536.85745489,0.0002171,2]
[373398389,1752985844528,-854.3,0.0002171,2]
[373398391,1752985844537,-3000.0,0.00021768,4]
[373398393,1752985844547,-3074.42669131,0.00021797,6]
[373398395,1752985844556,-819.88,0.00021812,2]
[373398397,1752985844566,-536.93105152,0.00021812,2]
[373398399,1752985844575,-460.0,0.00021813,2]
[373398401,1752985844584,-616.12,0.00021814,2]
[373398403,1752985844593,-5000.0,0.00021886,4]
[373398405,1752985844602,-460.0,0.00021913,2]
[373398407,1752985844611,-460.0,0.00021913,2]
[373398409,1752985844621,-460.0,0.00021913,2]
[373398411,1752985844629,-159.36810832,0.0002192,4]
[373398413,1752985844639,-170.02422363,0.00021973,2]
[373398415,1752985844648,-460.0,0.0002198,2]
[373398417,1752985844658,-680.08,0.00021981,2]
[373398419,1752985844668,-568.81,0.00021981,2]
[373398421,1752985844677,-1723.62,0.00021981,2]
[373398423,1752985844687,-6000.0,0.00021982,4]
[373398425,1752985844696,-854.3,0.00021984,2]
[373398427,1752985844706,-4449.5,0.00022,7]
[373398429,1752985844715,-1417.99,0.00022,7]
[373398431,1752985844724,-8733.06,0.00022,7]
[373398433,1752985844733,-66842.4,0.00022,2]
[373398435,1752985844743,-4000.0,0.00022021,4]